bitfinex/quotes_SOLUSD_20220302
["timestamp","ask_amount","ask_price","bid_price","bid_amount"]
[1646237555705,49.68483776,102.35,102.25,167.41301322]
[1646237555706,1.34821571,102.35,102.27,97.86]
[1646237555902,2.69766577,102.38,102.27,109.84]
[1646237555903,1.34821571,102.36,102.27,109.84]
[1646237556103,1.34821571,102.37,102.28,129.32834003]
[1646237556303,24.24611571,102.39,102.29,11.73]
[1646237556507,24.24611571,102.39,102.3,55.67269836]
[1646237556710,1.34821571,102.39,102.31,112.5238]
[1646237556908,1.34821571,102.39,102.31,50.7955]
[1646237557110,25.50071571,102.4,102.32,6.0]
[1646237557309,25.50071571,102.4,102.31,58.5561]
[1646237557608,27.18436554,102.4,102.31,46.8261]
[1646237557808,11.26491283,102.39,102.32,47.29304093]
[1646237558008,12.61312854,102.39,102.32,47.29304093]
[1646237558211,12.86312854,102.39,102.32,47.29304093]
[1646237558509,11.51491283,102.39,102.32,47.29304093]
[1646237559109,11.51491283,102.39,102.31,46.8261]
[1646237559310,11.51491283,102.39,102.31,47.0761]
[1646237559511,12.94733998,102.39,102.31,47.0761]
[1646237559710,12.69733998,102.39,102.31,47.0761]
[1646237559911,12.69733998,102.39,102.31,0.25]
[1646237560111,14.6667,102.38,102.31,0.25]
[1646237560312,2.15600974,102.37,102.31,0.25]
[1646237560513,2.15600974,102.37,102.3,71.21397199]
[1646237561425,27.542,102.39,102.3,195.46907199]
[1646237561625,1.34821571,102.4,102.31,2.54904003]
[1646237561825,24.58931571,102.42,102.31,112.38904003]
[1646237562125,28.2411,102.42,102.32,8.54904003]
[1646237562325,40.57354992,102.42,102.32,80.71689355]
[1646237562526,28.2411,102.42,102.32,80.71689355]
[1646237562727,28.4911,102.42,102.33,24.9119]
[1646237562926,28.4911,102.42,102.33,25.1619]
[1646237563130,43.1528,102.42,102.33,39.8222]
[1646237563526,5.0,102.42,102.34,56.64881431]
[1646237563727,5.0,102.42,102.34,56.89881431]
[1646237563929,5.0,102.42,102.34,54.34977428]
[1646237564327,5.0,102.42,102.34,68.75887428]
[1646237564728,5.25,102.42,102.34,54.09977428]
[1646237565228,0.25,102.42,102.34,54.09977428]
[1646237565430,40.9379752,102.44,102.34,54.09977428]
[1646237565629,39.24258654,102.44,102.34,54.09977428]
[1646237565832,1.92521707,102.43,102.34,54.09977428]
[1646237566030,2.17521707,102.43,102.34,54.09977428]
[1646237566231,7.17521707,102.43,102.34,54.09977428]
[1646237567031,14.6618,102.42,102.34,54.09977428]
[1646237567231,14.9118,102.42,102.34,54.09977428]
[1646237567731,19.6618,102.42,102.34,54.34977428]
[1646237568334,14.6618,102.42,102.34,54.34977428]
[1646237568532,19.6618,102.42,102.34,54.34977428]
[1646237568933,5.25,102.42,102.34,69.00917428]
[1646237569133,5.25,102.42,102.34,80.73917428]
[1646237569332,5.0,102.42,102.34,80.73917428]
[1646237570133,5.0,102.42,102.34,83.28821431]
[1646237570335,5.0,102.42,102.34,80.73917428]
[1646237570535,37.64437083,102.44,102.34,80.73917428]
[1646237570836,5.0,102.42,102.36,47.57367798]
[1646237571235,5.25,102.42,102.36,47.57367798]
[1646237571634,5.25,102.42,102.35,22.8357]
[1646237571834,5.25,102.42,102.32,24.3673]
[1646237571835,7.17521707,102.42,102.32,24.3673]
[1646237572236,2.40812987,102.42,102.32,24.3673]
[1646237572534,2.17521707,102.42,102.32,24.3673]
[1646237572736,5.0,102.4,102.33,57.19568288]
[1646237572935,5.25,102.4,102.33,57.19568288]
[1646237573134,14.6652,102.39,102.33,57.19568288]
[1646237573335,14.9152,102.39,102.33,57.19568288]
[1646237573537,0.25,102.39,102.3,24.8922]
[1646237573937,0.25,102.39,102.3,25.1422]
[1646237574239,5.0,102.38,102.3,24.8922]
[1646237574439,5.25,102.38,102.31,60.87650142]
[1646237574637,0.25,102.38,102.31,60.87650142]
[1646237574837,5.25,102.38,102.31,60.87650142]
[1646237575039,14.9168,102.38,102.31,60.87650142]
[1646237575238,19.9168,102.38,102.31,60.87650142]
[1646237575740,19.9168,102.38,102.32,6.0]
[1646237575940,19.9168,102.38,102.31,60.87650142]
[1646237576639,18.21684381,102.38,102.31,60.87650142]
[1646237576840,19.6691,102.37,102.3,24.8922]
[1646237577040,19.6691,102.37,102.28,27.52314003]
[1646237577041,19.9191,102.37,102.28,24.9741]
[1646237577239,2.50297012,102.36,102.24,11.73]
[1646237577439,52.14280513,102.36,102.24,11.73]
[1646237577839,51.56505208,102.36,102.25,54.06679654]
[1646237578443,14.6732,102.34,102.25,54.06679654]
[1646237578649,16.32820166,102.34,102.25,54.31679654]
[1646237579445,21.32820166,102.34,102.25,54.31679654]
[1646237579844,5.0,102.33,102.25,54.31679654]
[1646237580045,5.25,102.33,102.25,54.31679654]
[1646237580244,19.9246,102.33,102.25,54.31679654]
[1646237580745,23.5799372,102.33,102.25,54.31679654]
[1646237581344,19.9246,102.33,102.25,54.31679654]
[1646237581844,14.9246,102.33,102.25,54.31679654]
[1646237582045,0.25,102.33,102.25,54.31679654]
[1646237582345,14.9217,102.35,102.25,126.48114634]
[1646237582544,14.6717,102.35,102.27,57.54012185]
[1646237582745,14.6717,102.35,102.27,72.45952185]
[1646237583145,14.6717,102.35,102.27,57.54012185]
[1646237583946,14.9217,102.35,102.27,57.54012185]
[1646237584146,14.9217,102.35,102.25,61.58342586]
[1646237584447,2.14031498,102.34,102.23,45.20422586]
[1646237584647,14.04443517,102.34,102.23,23.0266]
[1646237584848,14.6794,102.31,102.23,23.0266]
[1646237585047,14.9294,102.31,102.23,23.0266]
[1646237585247,14.9294,102.31,102.24,43.74525661]
[1646237585449,0.25,102.31,102.24,43.74525661]
[1646237585846,0.25,102.31,102.26,54.63557756]
[1646237586248,0.25,102.34,102.26,54.88557756]
[1646237586449,47.9246,102.36,102.26,54.88557756]
[1646237587049,96.8338,102.36,102.26,54.88557756]
[1646237587249,96.8338,102.36,102.26,54.63557756]
[1646237587449,5.0,102.35,102.26,54.63557756]
[1646237587654,0.25,102.35,102.26,54.63557756]
[1646237588049,14.9216,102.35,102.26,54.63557756]
[1646237588251,18.39198765,102.35,102.26,54.63557756]
[1646237588649,5.0,102.34,102.23,47.988]
[1646237588851,50.71524102,102.33,102.23,47.988]
[1646237589049,52.89036179,102.33,102.23,47.988]
[1646237589249,1.92512077,102.32,102.23,47.988]
[1646237589449,2.17512077,102.32,102.23,47.988]
[1646237589651,2.17512077,102.32,102.24,53.71316435]
[1646237590050,5.0,102.29,102.24,53.71316435]
[1646237590251,0.25,102.29,102.24,53.71316435]
[1646237591350,14.9277,102.31,102.24,53.71316435]
[1646237593251,14.9277,102.31,102.23,47.988]
[1646237593459,0.2516184,102.3,102.2,22.6069]
[1646237593655,14.6804,102.29,102.2,69.0467]
[1646237593855,19.9304,102.29,102.2,69.0467]
[1646237594255,19.9304,102.29,102.21,46.74793974]
[1646237594457,19.9304,102.29,102.21,46.99793974]
[1646237594861,0.25,102.29,102.21,61.67573974]
[1646237595060,23.3816,102.3,102.21,73.40573974]
[1646237595061,23.6316,102.3,102.21,73.40573974]
[1646237595481,0.25,102.3,102.21,171.26573974]
[1646237595780,14.6747,102.33,102.23,58.90527126]
[1646237595983,14.6747,102.33,102.25,51.07769989]
[1646237596183,14.6747,102.33,102.25,51.32769989]
[1646237597183,14.6747,102.33,102.25,51.07769989]
[1646237597384,19.6747,102.33,102.25,51.07769989]
[1646237597583,14.6747,102.33,102.25,51.07769989]
[1646237597783,14.9247,102.33,102.25,51.07769989]
[1646237598385,5.0,102.32,102.25,51.07769989]
[1646237598584,14.6766,102.31,102.25,51.07769989]
[1646237598786,14.9266,102.31,102.25,51.07769989]
[1646237598985,14.9266,102.31,102.24,23.6366]
[1646237599786,19.9266,102.31,102.24,23.6366]
[1646237600086,19.9266,102.31,102.24,80.05884575]
[1646237600686,14.9266,102.31,102.24,80.05884575]
[1646237601088,19.9266,102.31,102.24,80.05884575]
[1646237601490,5.25,102.31,102.24,92.03884575]
[1646237601690,0.25,102.31,102.24,92.03884575]
[1646237601890,23.3126,102.33,102.24,92.03884575]
[1646237602089,23.0626,102.33,102.24,92.03884575]
[1646237602294,23.0626,102.33,102.24,99.97584575]
[1646237602996,24.7159,102.34,102.24,99.97584575]
[1646237602997,6.34821571,102.35,102.24,212.50934575]
[1646237603195,22.7962,102.36,102.25,103.86]
[1646237603394,23.0462,102.36,102.26,64.65954254]
[1646237603694,24.39441571,102.36,102.26,87.47764254]
[1646237603894,29.39441571,102.36,102.26,87.47764254]
[1646237604095,29.39441571,102.36,102.26,185.33764254]
[1646237604300,28.0462,102.36,102.26,185.33764254]
[1646237605096,42.7163,102.36,102.27,112.5293]
[1646237605297,42.7163,102.36,102.28,46.85514205]
[1646237605498,19.9201,102.36,102.28,47.10514205]
[1646237605896,16.26831571,102.36,102.28,47.10514205]
[1646237606096,18.19343648,102.36,102.28,47.10514205]
[1646237606498,23.19343648,102.36,102.28,47.10514205]
[1646237606698,18.19343648,102.36,102.28,47.10514205]
[1646237606899,16.26831571,102.36,102.28,47.10514205]
[1646237607100,16.26831571,102.36,102.28,58.83514205]
[1646237607399,16.26831571,102.36,102.28,58.58514205]
[1646237607602,23.19343648,102.36,102.28,46.85514205]
[1646237608001,21.26831571,102.36,102.28,47.10514205]
[1646237609200,6.59821571,102.36,102.28,47.10514205]
[1646237609800,5.25,102.36,102.28,58.83514205]
[1646237610000,0.25,102.36,102.28,58.83514205]
[1646237610203,1.59821571,102.37,102.28,73.50314205]
[1646237611802,1.34821571,102.38,102.28,171.36314205]
[1646237612006,1.34821571,102.39,102.31,14.6635]
[1646237612202,1.34821571,102.39,102.32,56.64805031]
[1646237612402,1.34821571,102.4,102.32,56.89805031]
[1646237612904,1.34821571,102.4,102.32,56.64805031]
[1646237613104,1.59821571,102.4,102.32,56.64805031]
[1646237613703,1.34821571,102.4,102.32,71.56025031]
[1646237613934,1.34821571,102.41,102.32,71.56025031]
[1646237614103,1.34821571,102.41,102.32,169.42025031]
[1646237614309,1.34821571,102.41,102.32,83.29025031]
[1646237614906,1.59821571,102.41,102.32,83.29025031]
[1646237617009,0.25,102.41,102.32,83.29025031]
[1646237617207,48.89901571,102.42,102.32,83.29025031]
[1646237617708,50.82413648,102.42,102.32,83.29025031]
[1646237618107,50.57413648,102.42,102.32,83.29025031]
[1646237618908,47.3008,102.42,102.32,83.29025031]
[1646237619108,52.3008,102.42,102.32,83.29025031]
[1646237619309,52.3008,102.42,102.34,57.03530331]
[1646237619512,16.01041571,102.43,102.34,57.28530331]
[1646237619709,5.0,102.42,102.34,57.03530331]
[1646237619912,16.01041571,102.43,102.34,57.03530331]
[1646237620110,5.0,102.42,102.34,57.03530331]
[1646237620310,14.9132,102.42,102.34,57.03530331]
[1646237620511,19.9132,102.42,102.34,57.03530331]
[1646237621515,5.25,102.42,102.34,57.03530331]
[1646237621712,5.25,102.42,102.34,57.28530331]
[1646237622117,5.25,102.42,102.34,83.67460331]
[1646237622717,5.25,102.42,102.34,83.42460331]
[1646237622718,0.25,102.42,102.34,83.42460331]
[1646237622915,31.99072812,102.44,102.34,68.76530331]
[1646237623113,1.92512077,102.42,102.34,57.28530331]
[1646237623314,2.38328854,102.41,102.34,57.03530331]
[1646237623514,2.63328854,102.41,102.34,57.03530331]
[1646237624114,0.25,102.41,102.34,57.28530331]
[1646237624716,5.0,102.42,102.34,57.28530331]
[1646237624914,31.95653648,102.44,102.34,69.01530331]
[1646237625113,30.60832077,102.44,102.34,69.01530331]
[1646237625313,30.60832077,102.44,102.34,181.53420331]
[1646237625516,22.6832,102.44,102.35,8.54904003]
[1646237625714,22.6832,102.44,102.35,20.52904003]
[1646237626315,22.6832,102.44,102.36,57.55430368]
[1646237626514,22.6832,102.44,102.36,57.80430368]
[1646237626714,22.9332,102.44,102.36,69.53430368]
[1646237627116,22.9332,102.44,102.36,84.19030368]
[1646237628317,0.25,102.44,102.36,182.05030368]
[1646237628515,31.06331571,102.46,102.36,182.05030368]
[1646237628516,31.31331571,102.46,102.36,204.56730368]
[1646237629338,44.622,102.46,102.36,106.70730368]
[1646237629539,45.97021571,102.46,102.36,106.70730368]
[1646237630339,45.97021571,102.46,102.36,109.00634371]
[1646237630939,31.31331571,102.46,102.36,206.86634371]
[1646237631140,31.31331571,102.46,102.37,6.0]
[1646237631339,31.31331571,102.46,102.37,11.73]
[1646237631541,31.31331571,102.46,102.37,35.4669]
[1646237632040,6.59821571,102.46,102.37,133.3269]
[1646237632241,5.25,102.46,102.37,136.12594003]
[1646237632743,1.83853961,102.47,102.37,136.12594003]
[1646237633345,6.83853961,102.47,102.37,136.12594003]
[1646237633642,1.90804727,102.45,102.37,136.12594003]
[1646237634146,2.67962969,102.44,102.37,136.12594003]
[1646237634343,0.25,102.44,102.37,38.26594003]
[1646237635544,2.15804727,102.45,102.37,38.26594003]
[1646237635744,2.15804727,102.45,102.37,136.12594003]
[1646237636144,1.13799063,102.44,102.37,38.01594003]
[1646237636348,1.38799063,102.44,102.37,11.73]
[1646237636544,1.38799063,102.44,102.36,80.07130368]
[1646237636745,1.92512077,102.43,102.36,80.07130368]
[1646237636946,2.17512077,102.43,102.36,80.07130368]
[1646237637147,2.17512077,102.43,102.36,57.55430368]
[1646237637346,1.92512077,102.42,102.36,57.55430368]
[1646237637647,3.76155215,102.42,102.3,49.1607]
[1646237637843,1.34821571,102.41,102.3,49.1607]
[1646237638044,3.76155215,102.41,102.3,49.1607]
[1646237638445,12.28293194,102.4,102.31,55.55625763]
[1646237638645,12.53293194,102.4,102.31,55.55625763]
[1646237638845,0.25,102.4,102.31,55.55625763]
[1646237639046,0.25,102.4,102.31,55.80625763]
[1646237639246,0.25,102.4,102.31,55.55625763]
[1646237639645,8.52333648,102.41,102.31,55.55625763]
[1646237639946,21.66483988,102.41,102.31,55.55625763]
[1646237640646,20.24155071,102.41,102.31,55.55625763]
[1646237640848,20.24155071,102.41,102.31,51.89925763]
[1646237641050,20.24155071,102.41,102.31,66.56265763]
[1646237641051,8.52333648,102.41,102.31,66.56265763]
[1646237641251,1.59821571,102.41,102.31,78.29265763]
[1646237641452,1.59821571,102.41,102.31,176.15265763]
[1646237641649,1.59821571,102.41,102.31,204.56749072]
[1646237641848,0.25,102.41,102.31,204.56749072]
[1646237642049,52.7539,102.42,102.32,128.1104]
[1646237642249,5.0,102.42,102.33,26.3893]
[1646237642449,1.34821571,102.43,102.33,26.6393]
[1646237642652,1.34821571,102.43,102.34,24.2504]
[1646237642850,1.34821571,102.43,102.35,50.22065169]
[1646237643051,1.34821571,102.43,102.35,50.47065169]
[1646237643650,1.59821571,102.43,102.35,50.47065169]
[1646237644051,16.25851571,102.43,102.35,50.47065169]
[1646237644464,1.59821571,102.43,102.35,50.22065169]
[1646237645054,6.34821571,102.42,102.35,50.22065169]
[1646237645255,6.59821571,102.42,102.35,50.22065169]
[1646237645855,8.52333648,102.42,102.35,50.22065169]
[1646237646053,1.34821571,102.41,102.35,50.22065169]
[1646237646256,1.34821571,102.4,102.35,50.22065169]
[1646237646456,1.59821571,102.4,102.35,50.22065169]
[1646237646954,1.59821571,102.4,102.3,11.73]
[1646237647155,14.6658,102.39,102.29,62.5326]
[1646237647357,14.9158,102.39,102.29,62.5326]
[1646237647556,14.9158,102.39,102.3,24.81049975]
[1646237647957,14.9158,102.39,102.29,62.5326]
[1646237647958,0.90573659,102.38,102.31,52.90113307]
[1646237648158,14.9158,102.39,102.31,52.90113307]
[1646237648757,16.26401571,102.39,102.31,52.90113307]
[1646237649057,1.59821571,102.39,102.31,52.90113307]
[1646237649260,0.25,102.39,102.31,52.90113307]
[1646237649458,1.59821571,102.4,102.31,52.90113307]
[1646237651160,1.59821571,102.4,102.31,151.01113307]
[1646237651359,0.25,102.4,102.31,189.98973952]
[1646237651560,1.34821571,102.42,102.32,128.3471]
[1646237651759,1.34821571,102.42,102.33,11.73]
[1646237651958,11.48086227,102.43,102.33,11.98]
[1646237652158,1.34821571,102.43,102.33,11.98]
[1646237652360,1.34821571,102.43,102.34,23.2792]
[1646237652558,1.34821571,102.43,102.34,23.5292]
[1646237652961,14.6613,102.42,102.34,23.5292]
[1646237653160,14.6613,102.42,102.35,53.80145899]
[1646237653962,14.6631,102.41,102.35,53.80145899]
[1646237654159,14.9131,102.41,102.35,53.80145899]
[1646237655261,14.9131,102.41,102.35,53.77829508]
[1646237655663,0.25,102.41,102.35,53.77829508]
[1646237655862,40.61451571,102.43,102.35,53.77829508]
[1646237658365,45.61451571,102.43,102.35,53.77829508]
[1646237660068,30.95391571,102.43,102.35,53.77829508]
[1646237660275,1.34821571,102.42,102.34,23.2792]
[1646237660475,6.34821571,102.41,102.34,23.2792]
[1646237660671,8.52339269,102.41,102.34,23.2792]
[1646237660877,6.59821571,102.41,102.34,23.2792]
[1646237661269,6.59821571,102.41,102.35,60.25248647]
[1646237661770,14.6657,102.39,102.34,23.2792]
[1646237661970,14.9157,102.39,102.33,23.2412]
[1646237662370,5.0,102.38,102.33,23.2412]
[1646237662571,5.25,102.38,102.33,23.2412]
[1646237662793,0.25,102.38,102.34,43.87824269]
[1646237663590,1.59821571,102.4,102.34,43.87824269]
[1646237663791,0.25,102.4,102.34,43.87824269]
[1646237663990,0.25,102.41,102.34,44.12824269]
[1646237664190,25.37321571,102.42,102.34,43.87824269]
[1646237664395,25.37321571,102.42,102.34,44.12824269]
[1646237665695,1.34821571,102.41,102.34,44.12824269]
[1646237665996,0.25,102.41,102.34,44.12824269]
[1646237666194,25.12321571,102.42,102.34,44.12824269]
[1646237666994,25.12321571,102.42,102.34,58.78724269]
[1646237667695,25.37321571,102.42,102.34,58.78724269]
[1646237669195,25.37321571,102.42,102.34,70.51724269]
[1646237669495,1.34821571,102.43,102.34,168.37724269]
[1646237669698,1.34821571,102.43,102.36,112.5131]
[1646237669894,1.34821571,102.45,102.38,97.86]
[1646237670096,6.34821571,102.46,102.39,109.59]
[1646237670296,5.0,102.46,102.4,45.61733341]
[1646237671098,5.25,102.46,102.4,60.26683341]
[1646237671297,6.59821571,102.46,102.4,60.26683341]
[1646237671498,0.25,102.46,102.4,60.26683341]
[1646237671802,2.08853961,102.47,102.4,60.26683341]
[1646237672399,2.08853961,102.47,102.4,85.23433341]
[1646237673303,0.7403239,102.47,102.4,85.23433341]
[1646237673499,1.90804727,102.45,102.4,85.23433341]
[1646237673699,2.15804727,102.45,102.4,183.09433341]
[1646237673899,2.15804727,102.45,102.4,195.07433341]
[1646237675101,0.4903239,102.47,102.4,195.07433341]
[1646237675705,0.4903239,102.47,102.42,14.6471]
[1646237675901,0.4903239,102.47,102.42,26.6271]
[1646237676101,0.4903239,102.47,102.43,46.36563092]
[1646237677407,0.4903239,102.47,102.43,46.61563092]
[1646237679009,0.25,102.51,102.43,46.36563092]
[1646237679213,45.8994,102.52,102.43,164.16363092]
[1646237679609,45.8994,102.52,102.43,182.71293092]
[1646237680210,50.02518839,102.52,102.43,182.71293092]
[1646237680407,45.8994,102.52,102.43,182.71293092]
[1646237680609,5.0,102.53,102.43,241.33293092]
[1646237681210,5.0,102.53,102.45,97.86]
[1646237681412,5.0,102.53,102.47,57.25593633]
[1646237681609,5.0,102.53,102.47,57.50593633]
[1646237681810,0.5953889,102.53,102.47,57.50593633]
[1646237682112,20.8936,102.55,102.47,57.50593633]
[1646237682511,25.8936,102.55,102.47,57.50593633]
[1646237682912,13.32067143,102.54,102.47,57.50593633]
[1646237683113,13.57067143,102.54,102.47,57.50593633]
[1646237683515,13.57067143,102.54,102.47,57.00593633]
[1646237685213,13.57067143,102.54,102.46,23.9564]
[1646237685413,28.21567143,102.54,102.46,23.9564]
[1646237685613,29.56388714,102.54,102.46,23.9564]
[1646237686015,47.61992694,102.54,102.46,23.9564]
[1646237686214,47.61992694,102.54,102.47,43.61768113]
[1646237686413,5.0,102.52,102.47,43.61768113]
[1646237686613,5.25,102.52,102.47,43.61768113]
[1646237687413,0.25,102.52,102.47,43.61768113]
[1646237687614,14.895,102.54,102.47,43.61768113]
[1646237687816,19.895,102.54,102.47,43.61768113]
[1646237688020,5.25,102.54,102.47,43.86768113]
[1646237688519,5.0,102.54,102.47,141.47768113]
[1646237688718,23.90691571,102.57,102.47,153.45768113]
[1646237688935,22.5587,102.57,102.47,168.09818113]
[1646237689518,41.19527246,102.57,102.47,168.09818113]
[1646237690118,55.83487246,102.57,102.49,55.2925818]
[1646237690320,55.83487246,102.57,102.49,55.5425818]
[1646237690620,55.83487246,102.57,102.49,55.2925818]
[1646237690819,51.08487246,102.57,102.49,55.2925818]
[1646237691021,5.0,102.56,102.49,55.2925818]
[1646237691220,5.25,102.56,102.49,55.2925818]
[1646237692822,5.25,102.56,102.49,55.5425818]
[1646237693023,5.0,102.56,102.49,167.7898818]
[1646237693222,22.5587,102.57,102.49,183.6698818]
[1646237693626,29.4411,102.58,102.49,183.6698818]
[1646237694025,43.14928663,102.58,102.49,183.6698818]
[1646237694625,43.39928663,102.58,102.49,183.6698818]
[1646237694825,43.14928663,102.58,102.49,183.6698818]
[1646237695225,29.4411,102.58,102.49,183.6698818]
[1646237695428,24.4411,102.58,102.49,183.6698818]
[1646237695928,14.6373,102.59,102.49,183.6698818]
[1646237696128,14.8873,102.59,102.49,186.21892183]
[1646237696543,14.8873,102.59,102.51,97.86]
[1646237696745,14.8873,102.59,102.52,55.37666312]
[1646237696945,14.6373,102.59,102.52,55.37666312]
[1646237698647,14.8873,102.59,102.52,55.37666312]
[1646237699947,13.68934049,102.58,102.52,55.37666312]
[1646237700151,28.57674049,102.58,102.5,35.2821]
[1646237700350,14.8874,102.58,102.5,23.5521]
[1646237700549,0.25,102.58,102.5,133.1421]
[1646237700851,0.25,102.58,102.5,35.2821]
[1646237701256,28.3743536,102.61,102.5,35.2821]
[1646237701450,23.146,102.61,102.52,14.6324]
[1646237701653,23.146,102.61,102.53,152.08217796]
[1646237701851,23.146,102.61,102.53,152.33217796]
[1646237702052,23.146,102.61,102.53,164.06217796]
[1646237702252,27.8394,102.62,102.53,164.06217796]
[1646237703052,27.8394,102.62,102.54,112.4907]
[1646237703253,27.8394,102.62,102.55,60.03171005]
[1646237703454,22.8394,102.62,102.55,60.03171005]
[1646237704953,24.3083,102.63,102.55,74.66071005]
[1646237705154,26.4653,102.65,102.57,52.61199084]
[1646237705355,1.799,102.65,102.58,120.4225]
[1646237705755,1.799,102.65,102.59,11.73]
[1646237705956,1.799,102.65,102.59,26.3529]
[1646237706357,1.799,102.65,102.6,47.79482786]
[1646237707956,2.049,102.65,102.6,62.41702786]
[1646237708358,1.799,102.65,102.6,62.41702786]
[1646237709659,2.049,102.65,102.6,47.79482786]
[1646237710259,4.60535578,102.65,102.58,73.7566]
[1646237710458,4.60535578,102.65,102.58,11.73]
[1646237710659,4.60535578,102.65,102.52,146.57]
[1646237710660,21.051905,102.65,102.54,14.63]
[1646237710860,22.6565,102.64,102.54,37.9977]
[1646237711059,29.33570919,102.64,102.54,37.9977]
[1646237711465,27.9065,102.64,102.55,140.9377223]
[1646237711658,22.9065,102.64,102.55,152.6677223]
[1646237711858,22.9065,102.64,102.55,152.9177223]
[1646237712061,22.9065,102.64,102.56,24.4986]
[1646237712258,22.9065,102.64,102.56,51.1053]
[1646237712459,22.9065,102.64,102.57,50.13066364]
[1646237712658,22.6565,102.64,102.57,50.13066364]
[1646237713461,1.50918679,102.63,102.57,50.13066364]
[1646237713863,22.6565,102.64,102.57,50.13066364]
[1646237714065,24.49800083,102.64,102.57,50.13066364]
[1646237714663,22.6565,102.64,102.57,50.13066364]
[1646237715864,4.05710897,102.63,102.57,50.13066364]
[1646237716164,4.30710897,102.63,102.57,50.13066364]
[1646237716964,4.30710897,102.63,102.55,37.559]
[1646237716965,4.30710897,102.63,102.55,14.581]
[1646237717166,18.93850897,102.63,102.55,14.581]
[1646237717965,18.93850897,102.63,102.56,51.93731654]
[1646237718767,5.0,102.64,102.56,52.18731654]
[1646237718966,201.58883077,102.76,102.57,180.0]
[1646237718967,14.3853,102.71,102.57,180.0]
[1646237719268,50.42965857,102.74,102.59,156.48]
[1646237719466,49.09189763,102.74,102.61,97.86]
[1646237719666,12.77928997,102.73,102.63,55.69178812]
[1646237719866,3.81316768,102.71,102.63,55.69178812]
[1646237720466,12.77928997,102.69,102.63,55.69178812]
[1646237721268,12.77928997,102.69,102.62,47.1317]
[1646237721269,14.69379596,102.69,102.62,47.1317]
[1646237721873,36.41690651,102.69,102.55,28.0784]
[1646237722070,47.93283674,102.68,102.49,5.91403537]
[1646237722271,14.6317,102.63,102.53,11.73]
[1646237722569,14.6317,102.63,102.5,47.2379]
[1646237722772,1.91450599,102.62,102.5,47.2379]
[1646237722973,1.91450599,102.62,102.51,146.6278]
[1646237723170,1.91450599,102.62,102.51,158.3578]
[1646237723370,1.91450599,102.62,102.52,155.42622538]
[1646237723969,1.91450599,102.62,102.52,191.89352538]
[1646237724172,16.54710599,102.62,102.52,206.52612538]
[1646237724373,4.30906581,102.61,102.52,108.66612538]
[1646237724572,4.30906581,102.61,102.52,96.93612538]
[1646237724771,6.2235718,102.61,102.52,96.93612538]
[1646237725972,11.2235718,102.61,102.52,96.93612538]
[1646237726173,22.24250287,102.61,102.52,57.56622538]
[1646237726975,36.59080287,102.61,102.52,57.56622538]
[1646237727374,17.28339184,102.59,102.52,57.56622538]
[1646237727576,14.6388,102.58,102.52,57.56622538]
[1646237728581,19.6388,102.58,102.52,57.56622538]
[1646237728780,14.6388,102.58,102.52,57.56622538]
[1646237729383,19.6388,102.58,102.52,57.56622538]
[1646237730404,14.6388,102.58,102.52,57.56622538]
[1646237730903,19.6388,102.58,102.52,57.56622538]
[1646237731907,19.6388,102.58,102.49,3.9]
[1646237732211,5.0,102.57,102.49,3.9]
[1646237732406,14.6409,102.56,102.49,3.9]
[1646237732806,5.0,102.57,102.49,3.9]
[1646237733007,17.29737128,102.57,102.5,59.54600076]
[1646237733207,5.0,102.57,102.5,59.54600076]
[1646237733507,19.3775712,102.57,102.5,59.54600076]
[1646237733708,4.72,102.56,102.5,59.54600076]
[1646237733906,14.6399,102.57,102.5,59.54600076]
[1646237734107,4.7,102.56,102.5,59.54600076]
[1646237735608,14.6378,102.59,102.5,74.18250076]
[1646237735808,22.9487,102.6,102.5,85.91250076]
[1646237736009,27.6487,102.6,102.5,85.91250076]
[1646237736407,27.6487,102.6,102.5,108.98790076]
[1646237736608,2.99917406,102.59,102.5,108.98790076]
[1646237737410,7.69917406,102.59,102.5,108.98790076]
[1646237737608,9.60889696,102.59,102.5,108.98790076]
[1646237737807,4.90889696,102.59,102.5,108.98790076]
[1646237738209,9.60889696,102.59,102.5,108.98790076]
[1646237738409,6.6097229,102.59,102.5,108.98790076]
[1646237738609,1.9097229,102.59,102.5,108.98790076]
[1646237738810,6.6097229,102.59,102.5,108.98790076]